{"text_format":"1","workbook":"xlsx","n_sheets":4,"sheets":["Měsíční statistika","Časové řady","Srovnávací rok 2016, grafy","Komentář"],"not_rendered":{"charts":3,"images":2,"macros":1,"external_links":0,"defined_names":0,"comments":0,"pivot_tables":0},"unopened":[],"bounds":{"document_bytes":16777216,"sheet_cells":100000,"rows_first":2000,"rows_last":500,"rows_between":2000,"halvings":0,"cell_chars":16384,"cell_head_chars":4096},"cells_cut":0,"cells_raw":0,"read":"whole","date_system":"1900"}

{"sheet":"Měsíční statistika","index":0,"n_rows":40,"n_cols":8,"rows_kept":40,"cut":false,"hidden":false,"merged":[[24,0,24,6],[25,0,25,6],[2,0,2,6],[3,0,3,6],[5,0,5,6],[7,0,7,6],[8,0,8,6],[9,0,9,6],[10,0,10,7],[13,0,13,9],[16,0,17,0],[18,0,19,0],[6,0,6,8]]}
[null,null,null,null,null,null,"Sledované období:","2017-05-01"]
[]
["Přímý  nákup mléka mlékárnami a odbytovými organizacemi od producentů, realizovaný na území ČR. "]
["Zdroj: Měsíční výkaz o nákupu mléka Odbyt (MZe) 6 - 12, Měsíční výkaz o nákupu mléka, o výrobě a užití vybraných mlékárenských výrobků Mlék (MZe) 6 - 12."]
[]
[" • Objem měsíčního nákupu mléka a kumulativní objem nákupu mléka od začátku kalendářního (referenčního) roku od producentů v ČR. Zaokrouhleno na tis.l.           "]
[]
[" • Průměrná měsíční nákupní cena ve smyslu nařízení Komise (EU) č. 479/2010  ve znění pozdějších předpisů                                                                                                                                                                 _ (Farm gate price = kupní cena vyplacená producentům na území ČR). Zaokrouhleno na dvě desetinná místa.               "]
[" • Průměrná cena nákupu od začátku roku, kalkulovaná z kumulativní hodnoty nákupu od začátku kalendářního (referenčního) roku včetně doplatků za předchozí měsíce  __referenčního roku. Zaokrouhleno na tis. Kč.       "]
[" • Průměrný obsah tuku a bílkovin v nakoupeném mléce. Zaokrouhleno na dvě desetinná místa.                                              "]
[" • Vývoz syrového a tepelně ošetřeného mléka v cisternách vykazovaný zpravodajskými jednotkami statistického šetření Odbyt (MZe) 6 - 12. Zaokrouhleno na tis.l."]
[]
[]
[]
["Ukazatel","Sledované období","Množství                      (tis. l)","Hodnota nákupu (bez DPH)                                              tis. Kč","Průměrná kupní cena mléka                                                                                         (Kč/l )","Průměrný obsah tuku                                                             (%)","Průměrný obsah bílkovin                   (%)"]
["a","b",1,null,2,3,4]
["Přímý nákup  mléka od producentů v ČR celkem","za měsíc",254262,2125382,8.36,3.86,3.42]
[null,"od začátku roku",1212548,9921603,8.18,3.94,3.47]
["Dodávky mléka v cisternách do zemí EU                              a třetích zemí celkem","za měsíc",52570,"x","x",3.89,3.45]
[null,"od začátku roku",202227,"x","x",3.97,3.48]
[]
["x - nesleduje se"]
[]
[]
[]
[]
[]
[]
[]
[]
[]
[]
[]
[]
[]
[]
[]
["Těšnov 17, 117 05 Praha I, Česká republika"]
["tel.: 420 221 111, fax: +420 224 810 478"]
["www.eagri.cz"]

{"sheet":"Časové řady","index":1,"n_rows":78,"n_cols":13,"rows_kept":78,"cut":false,"hidden":false,"merged":[[35,0,35,12],[36,0,36,11],[41,0,42,0],[41,1,42,1],[41,2,41,6],[41,7,41,9],[39,0,39,9],[0,0,0,12],[6,0,6,8],[7,0,7,11],[10,0,10,12],[11,0,11,12],[1,0,1,12],[3,0,3,12],[5,0,5,12],[4,0,4,11],[29,121,29,129],[12,0,13,0],[12,1,13,1],[12,2,12,8],[12,9,12,12],[29,0,29,12],[34,0,34,12],[29,256,29,259],[30,0,30,12],[32,0,32,12],[29,193,29,201],[29,202,29,210],[29,211,29,219],[29,220,29,228],[29,229,29,237],[29,148,29,156],[29,157,29,165],[29,166,29,174],[29,175,29,183],[29,184,29,192],[29,103,29,111],[29,112,29,120],[33,0,33,12],[58,0,58,8],[29,238,29,246],[29,247,29,255],[29,130,29,138],[29,139,29,147],[29,58,29,66],[29,67,29,75],[29,76,29,84],[29,85,29,93],[29,94,29,102],[29,13,29,21],[29,22,29,30],[29,31,29,39],[29,40,29,48],[29,49,29,57]]}
["Časová řada přímého nákupu mléka mlékárnami a odbytovými organizacemi od producentů v ČR.                                                                                                                                                                                                                                                Časová řada dodávek mléka mimo území ČR. "]
["Zdroj: Měsíční výkaz o nákupu mléka Odbyt (MZe) 6 - 12, Měsíční výkaz o nákupu mléka, o výrobě a užití vybraných mlékárenských výrobků Mlék (MZe) 6 - 12."]
[]
[" • Objem  mléka nakoupeného přímo od producentů v jednotlivých měsících kalendářního (referenčního) roku 2017. Zaokrouhleno na tis. l.             "]
["•  Hodnota nákupu mléka. Zaokrouhleno na tis. Kč."]
[" • Průměrná nákupní cena ve sledovaných měsících, ve smyslu nařízení Komise (EU) č. 479/2010 ve znění pozdějších předpisů (Farm gate price = kupní cena vyplacená producentům na území ČR).                                                                              _ Zaokrouhleno na dvě desetinná místa.                "]
[" • Obsah tuku a bílkovin v nakoupeném mléce. Zaokrouhleno na dvě desetinná místa.                                              "]
[" • Vývoz syrového a tepelně ošetřeného mléka mimo území ČR vykazovaný zpravodajskými jednotkami statistického šetření Odbyt (MZe) 6 - 12 v  jednotlivých měsících kalendářního (referenčního) roku 2017.  __Zaokrouhleno na tis. l."]
[]
[]
["Časová řada I. - XII. 2017"]
[]
["Rok","Měsíc","Přímý nákup mléka od producentů v ČR celkem ",null,null,null,null,null,null,"Dodávky mléka v cisternách z ČR do zemí EU a třetích zemí celkem"]
[null,null,"Množství                                                      tis. l     ","Srovnání s předchozím měsícem sledovaného roku % nárůst/pokles ","Hodnota nákupu (bez DPH)                                              tis. Kč","Průměrná kupní cena mléka ve sledovaném měsíci                                                                                   Kč/l ","Srovnání   s předchozím měsícem sledovaného roku % nárůst/pokles","Průměrný obsah tuku                                 %                                                     ","Průměrný obsah bílkovin                                                            % ","Množství                                                      tis. l     ","Srovnání   s předchozím měsícem sledovaného roku % nárůst/pokles ","Průměrný obsah tuku                                 %                                                     ","Průměrný obsah bílkovin                                                            % "]
[2017,"leden",239738,0,1886810,7.87,0,4.0599999999999996,3.54,30523,0,4.12,3.59]
[2017,"únor",220972,{"$f":"C16/C15-1","v":-7.8277119188447375E-2},1786473,8.08,{"$f":"F16/F15-1","v":2.6683608640406531E-2},4,3.51,32824,{"$f":"J16/J15-1","v":7.5385774661730576E-2},4.05,3.54]
[2017,"březen",251077,{"$f":"C17/C16-1","v":0.13623898050431738},2058548,8.1999999999999993,{"$f":"F17/F16-1","v":1.4851485148514865E-2},3.91,3.46,37871,{"$f":"J17/J16-1","v":0.1537594443090422},3.95,3.48]
[2017,"duben",246499,{"$f":"C18/C17-1","v":-1.8233450296124332E-2},2049919,8.32,{"$f":"F18/F17-1","v":1.4634146341463428E-2},3.9,3.44,48439,{"$f":"J18/J17-1","v":0.27905257320905186},3.93,3.41]
[2017,"květen",254262,{"$f":"C19/C18-1","v":3.149302836928336E-2},2125382,8.36,{"$f":"F19/F18-1","v":4.8076923076922906E-3},3.86,3.42,52570,{"$f":"J19/J18-1","v":8.5282520283242791E-2},3.89,3.45]
[2017,"červen"]
[2017,"červenec"]
[2017,"srpen"]
[2017,"září"]
[2017,"říjen"]
[2017,"listopad"]
[2017,"prosinec"]
[]
[]
[]
["Kumulativní hodnoty a vážené průměry sledovaných ukazatelů od začátku referenčního (kalendářního) roku 2017."]
["Zdroj: Měsíční výkaz o nákupu mléka Odbyt (MZe) 6 - 12, Měsíční výkaz o nákupu mléka, o výrobě a užití vybraných mlékárenských výrobků Mlék (MZe) 6 - 12."]
[]
[" • Objem mléka nakoupeného přímo od producentů - kumulativní nápočet od 1. 1. 2017. Zaokrouhleno na tis.l.              "]
[" • Hodnota nákupu mléka včetně doplatků a srážek za předchozí měsíce referenčního (kalendářního roku). Zaokrouhleno na tis. Kč."]
[" • Kalkulovaná průměrná cena nákupu  včetně doplatků a srážek za předchozí měsíce referenčního (kalendářního) roku. Zaokrouhleno na dvě desetinná místa.               "]
[" • Obsah tuku a bílkovin v nakoupeném mléce - vážený průměr od 1. 1. 2017. Zaokrouhleno na dvě destinná místa.                                          "]
[" • Vývoz syrového a tepelně ošetřeného mléka mimo území ČR vykazovaný zpravodajskými jednotkami statistického šetření Odbyt (MZe) 6 - 12  -  kumulativní nápočet od 1. 1. 2017.                                                              __Zaokrouhleno na dvě desetinná místa."]
[]
[]
["Referenční období  I. - XII. 2017"]
[]
["Rok","Měsíc","Přímý nákup mléka od producentů v ČR celkem ",null,null,null,null,"Dodávky mléka v cisternách z ČR do zemí EU a třetích zemí celkem"]
[null,null,"Množství                                                      tis. l     ","Hodnota nákupu od začátku roku referenčního roku včeně doplatků a srážek za minulá období (bez DPH)                                                    tis. Kč","Kalkulovaná průměrná cena nákupu od začátku referenčního roku včetně doplatků a srážek za minulá období                                                Kč/l ","Průměrný obsah tuku                                 %                                                     ","Průměrný obsah bílkovin                                                            % ","Množství                                                      tis. l     ","Průměrný obsah tuku                                 %                                                     ","Průměrný obsah bílkovin                                                            % "]
[2017,"leden",239738,1886810,7.87,4.0599999999999996,3.54,30523,4.12,3.59]
[2017,"únor",460710,"*3 678 007,00",7.99,4.03,3.53,63347,4.09,3.56]
[2017,"březen",711787,5739251,8.08,3.99,3.5,101218,4.04,3.53]
[2017,"duben",958286,7793555,8.1300000000000008,3.97,3.49,149657,4,3.49]
[2017,"květen",1212548,9921603,8.18,3.94,3.47,202227,3.97,3.48]
[2017,"červen"]
[2017,"červenec"]
[2017,"srpen"]
[2017,"září"]
[2017,"říjen"]
[2017,"listopad"]
[2017,"prosinec"]
[]
["*definitivní údaj po aktualizaci ZJ"]
[]
[]
[]
[]
[]
[]
[]
[]
[]
[]
[]
[]
[]
[]
[]
[]
[]
[]
["Těšnov 17, 117 05 Praha I, Česká republika"]
["tel.: 420 221 111, fax: +420 224 810 478"]
["www.eagri.cz"]

{"sheet":"Srovnávací rok 2016, grafy","index":2,"n_rows":97,"n_cols":8,"rows_kept":97,"cut":false,"hidden":false,"merged":[[0,0,1,0],[0,1,1,1],[0,2,0,5],[0,6,0,7],[2,3,11,3],[2,5,11,5],[2,7,11,7]]}
["Rok","Měsíc","Přímý nákup mléka od producentů v ČR celkem ",null,null,null,"Dodávky mléka v cisternách z ČR do zemí EU a třetích zemí celkem"]
[null,null,"Množství                                                      tis. l     ","Srovnání s odpovídajícím měsícem předchozího roku 2016","Průměrná cena ve sledovaném měsíci                                                                                   Kč/l ","Srovnání s odpovídající průměrnou měsíční cenou předchozího roku 2016","Množství                                                      tis. l     ","Srovnání s odpovídajícím měsícem předchozího roku 2016"]
[2016,"leden",230485,"Srovnávací rok                                                            ",7.4,"Srovnávací rok                                                            ",33059,"Srovnávací rok                                                            "]
[2016,"únor",229794,null,7.18,null,34145]
[2016,"březen",249093,null,6.89,null,34918]
[2016,"duben",232301,null,6.65,null,34138]
[2016,"květen",237433,null,6.35,null,35620]
[2016,"červen",224960,null,6.16,null,33959]
[2016,"červenec",230954,null,6.13,null,35780]
[2016,"srpen",228108,null,6.2,null,35081]
[2016,"září",213674,null,6.44,null,32637]
[2016,"říjen",218829,null,6.8,null,33648]
[2016,"listopad",206418,2016,7.1927624345180341,2016,32072,2016]
[2016,"prosinec",217713,null,7.57,null,33797]
[2017,"leden",239738,{"$f":"C15/C3-1","v":4.0145779551814753E-2},7.87,{"$f":"E15/E3-1","v":6.351351351351342E-2},30523,{"$f":"G15/G3-1","v":-7.6711334281133747E-2}]
[2017,"únor",220972,{"$f":"C16/C4-1","v":-3.8390906638119393E-2},8.08,{"$f":"E16/E4-1","v":0.12534818941504189},32824,{"$f":"G16/G4-1","v":-3.8687948455117915E-2}]
[2017,"březen",251077,{"$f":"C17/C5-1","v":7.9648966450280856E-3},8.1999999999999993,{"$f":"E17/E5-1","v":0.19013062409288817},37871,{"$f":"G17/G5-1","v":8.4569562976115398E-2}]
[2017,"duben",246499,{"$f":"C18/C6-1","v":6.1118979255362582E-2},8.32,{"$f":"E18/E6-1","v":0.2511278195488722},48439,{"$f":"G18/G6-1","v":0.41891733552053423}]
[2017,"květen",254262,{"$f":"C19/C7-1","v":7.0878942691201319E-2},8.36,{"$f":"E19/E7-1","v":0.31653543307086607},52570,{"$f":"G19/G7-1","v":0.4758562605277934}]
[2017,"červen"]
[2017,"červenec"]
[2017,"srpen"]
[2017,"září"]
[2017,"říjen"]
[2017,"listopad"]
[2017,"prosinec"]
[]
[]
[]
[]
[]
[]
[]
[]
[]
[]
[]
[]
[]
[]
[]
[]
[]
[]
[]
[]
[]
[]
[]
[]
[]
[]
[]
[]
[]
[]
[]
[]
[]
[]
[]
[]
[]
[]
[]
[]
[]
[]
[]
[]
[]
[]
[]
[]
[]
[]
[]
[]
[]
[]
[]
[]
[]
[]
[]
[]
[]
[]
[]
[]
[]
[]
[]
[]
["Těšnov 17, 117 05 Praha I, Česká republika"]
["tel.: 420 221 111, fax: +420 224 810 478"]
["www.eagri.cz"]

{"sheet":"Komentář","index":3,"n_rows":0,"n_cols":0,"rows_kept":0,"cut":false,"hidden":false,"merged":[]}